bitfinex/quotes_SOLUSD_20240712
["timestamp","ask_amount","ask_price","bid_price","bid_amount"]
[1720790142629,0.2,137.49,137.39,6.1391]
[1720790142915,7.2755,137.45,137.37,15.1356]
[1720790143319,10.2,137.49,137.37,15.1356]
[1720790143522,7.275,137.46,137.37,15.1356]
[1720790143709,10.2,137.49,137.37,15.1356]
[1720790143911,7.15355972,137.48,137.37,15.1356]
[1720790144117,10.2,137.49,137.37,15.1356]
[1720790144118,65.31307422,137.47,137.37,15.1356]
[1720790144316,7.15355972,137.46,137.37,15.1356]
[1720790144515,7.2757,137.45,137.37,15.1356]
[1720790144718,7.2747,137.47,137.37,15.1356]
[1720790145299,14.42871696,137.46,137.37,15.1356]
[1720790145509,7.274,137.48,137.38,45.0]
[1720790145724,0.2,137.49,137.38,45.0]
[1720790146023,7.2752,137.46,137.31,38.2934]
[1720790146227,10.0,137.47,137.31,38.2934]
[1720790146427,7.1540559,137.46,137.31,38.2934]
[1720790146727,7.2765,137.43,137.31,38.2934]
[1720790147052,10.0,137.47,137.31,38.2934]
[1720790147053,10.0,137.47,137.32,41.91]
[1720790147233,7.15414225,137.46,137.33,66.91]
[1720790147428,10.2,137.49,137.33,66.91]
[1720790147733,7.15376546,137.48,137.37,21.91]
[1720790147955,0.2,137.49,137.36,22.3205]
[1720790147956,0.2,137.49,137.38,86.91]
[1720790148241,0.2,137.49,137.42,21.91]
[1720790148417,0.2,137.49,137.43,86.91]
[1720790150125,0.2,137.49,137.44,0.98776279]
[1720790150330,3.996,137.5,137.46,21.91]
[1720790150539,3.996,137.5,137.47,65.0]
[1720790150839,3.996,137.5,137.48,0.64089215]
[1720790151155,3.996,137.5,137.49,1.45401395]
[1720790151346,3.996,137.5,137.48,1.45392422]
[1720790151653,3.996,137.5,137.47,86.91]
[1720790152439,3.996,137.5,137.47,65.0]
[1720790152814,3.996,137.5,137.45,10.0]
[1720790153122,3.996,137.5,137.41,22.4309]
[1720790153322,3.996,137.5,137.41,44.3409]
[1720790153639,3.996,137.5,137.41,51.6119]
[1720790154540,3.996,137.5,137.43,21.91]
[1720790154734,3.996,137.5,137.44,41.91]
[1720790154931,3.996,137.5,137.45,45.0]
[1720790155138,3.996,137.5,137.45,65.0]
[1720790155336,3.996,137.5,137.45,86.91]
[1720790156117,3.996,137.5,137.46,0.82469911]
[1720790156317,3.996,137.5,137.43,41.91]
[1720790156852,3.996,137.5,137.43,21.91]
[1720790157225,3.996,137.5,137.42,21.91]
[1720790157952,3.996,137.5,137.41,51.6119]
[1720790158256,3.996,137.5,137.42,20.0]
[1720790158940,3.996,137.5,137.42,41.91]
[1720790159144,3.996,137.5,137.43,1.45441587]
[1720790159839,3.996,137.5,137.43,46.45441587]
[1720790160043,3.996,137.5,137.44,20.0]
[1720790160254,3.996,137.5,137.45,45.0]
[1720790160540,3.996,137.5,137.46,20.0]
[1720790160962,3.996,137.5,137.47,45.0]
[1720790161136,3.996,137.5,137.48,20.0]
[1720790161944,3.996,137.5,137.49,0.8244744]
[1720790162358,3.996,137.5,137.49,1.45424717]
[1720790162639,3.996,137.5,137.49,45.0]
[1720790162850,3.996,137.5,137.49,65.0]
[1720790165724,3.996,137.5,137.49,65.7617365]
[1720790166927,3.996,137.5,137.49,65.0]
[1720790167532,3.996,137.5,137.49,65.5581918]
[1720790167739,3.996,137.5,137.49,65.0]
[1720790168053,3.996,137.5,137.49,86.91]
[1720790168246,3.996,137.5,137.49,65.0]
[1720790169734,3.996,137.5,137.49,66.45349678]
[1720790169924,3.996,137.5,137.49,88.3639104]
[1720790170130,0.04325856,137.52,137.49,88.3639104]
[1720790170451,0.04325856,137.52,137.5,41.91]
[1720790170649,0.04325856,137.52,137.51,68.36364518]
[1720790170856,0.04325856,137.52,137.51,65.0]
[1720790171350,0.04325856,137.52,137.51,20.0]
[1720790171550,0.04325856,137.52,137.49,20.0]
[1720790171742,0.04325856,137.52,137.47,15.6666]
[1720790173673,0.04325856,137.52,137.48,20.0]
[1720790174453,0.04325856,137.52,137.48,41.91]
[1720790174637,0.04325856,137.52,137.49,66.91]
[1720790174936,0.04325856,137.52,137.5,20.0]
[1720790175236,0.04325856,137.52,137.51,45.0]
[1720790175438,0.04325856,137.52,137.51,65.0]
[1720790176543,0.04325856,137.52,137.51,86.91]
[1720790176958,0.04325856,137.52,137.51,65.0]
[1720790177145,0.04325856,137.52,137.51,86.91]
[1720790177337,0.04325856,137.52,137.51,65.0]
[1720790178837,0.04325856,137.52,137.51,20.0]
[1720790179041,0.04325856,137.52,137.48,20.0]
[1720790179242,0.04325856,137.52,137.49,21.91]
[1720790179446,0.04325856,137.52,137.5,41.91]
[1720790180152,0.04325856,137.52,137.51,45.0]
[1720790180353,0.04325856,137.52,137.51,20.0]
[1720790180547,0.04325856,137.52,137.51,21.45108121]
[1720790180944,0.04325856,137.52,137.51,1.45108121]
[1720790181162,0.04325856,137.52,137.51,21.45108121]
[1720790181663,0.04325856,137.52,137.51,66.45108121]
[1720790183357,0.2,137.59,137.51,88.36108121]
[1720790183544,0.2,137.59,137.52,86.91]
[1720790183744,0.2,137.59,137.53,1.45087018]
[1720790184254,0.2,137.59,137.52,86.91]
[1720790184946,0.2,137.59,137.54,38.2646]
[1720790185147,0.2,137.59,137.55,65.48406161]
[1720790185352,0.2,137.59,137.56,0.48402673]
[1720790186050,0.2,137.59,137.55,65.0]
[1720790187580,0.2,137.59,137.55,86.91]
[1720790189247,0.8476585,137.61,137.55,86.91]
[1720790189461,0.8476585,137.61,137.57,21.91]
[1720790189668,0.8476585,137.61,137.59,21.91]
[1720790189962,0.8476585,137.61,137.6,20.0]
[1720790190161,0.8476585,137.61,137.6,86.91]
[1720790190369,0.8476585,137.61,137.6,65.0]
[1720790190952,0.8476585,137.61,137.6,20.0]
[1720790191166,0.8476585,137.61,137.54,16.3546]
[1720790191962,0.8476585,137.61,137.55,21.91]
[1720790192269,0.8476585,137.61,137.56,0.59137194]
[1720790192678,0.8476585,137.61,137.57,21.91]
[1720790192977,0.8476585,137.61,137.58,87.61311834]
[1720790193149,0.8476585,137.61,137.58,86.91]
[1720790193955,0.8476585,137.61,137.59,1.45275863]
[1720790194174,0.2,137.69,137.59,40.01115863]
[1720790194374,0.2,137.69,137.6,65.0]
[1720790194586,0.2,137.69,137.61,1.45254749]
[1720790195156,7.2638,137.67,137.58,21.91]
[1720790195353,7.2651,137.65,137.55,16.6484]
[1720790195555,7.2655,137.64,137.55,16.6484]
[1720790195854,7.27,137.56,137.5,2.9014827]
[1720790196055,7.2684,137.59,137.47,7.58074911]
[1720790196254,21.2308,137.62,137.48,21.91]
[1720790196885,21.2308,137.62,137.5,21.91]
[1720790197600,21.2308,137.62,137.52,21.91]
[1720790197811,21.2308,137.62,137.54,21.91]
[1720790198115,22.2644,137.66,137.56,15.1212]
[1720790198399,0.2,137.69,137.57,41.91]
[1720790198400,16.207,137.69,137.57,41.91]
[1720790198572,16.207,137.69,137.59,21.91]
[1720790198769,16.207,137.69,137.6,66.20386857]
[1720790198974,16.207,137.69,137.61,1.20378108]
[1720790199183,23.4697,137.69,137.6,65.0]
[1720790199380,16.207,137.69,137.6,86.91]
[1720790199598,16.207,137.69,137.6,65.0]
[1720790199786,23.47,137.69,137.6,65.0]
[1720790200186,16.207,137.69,137.6,65.0]
[1720790200399,26.207,137.69,137.56,21.7721]
[1720790200707,7.2638,137.67,137.57,45.0]
[1720790200913,7.2643,137.66,137.57,45.0]
[1720790201080,18.1581,137.68,137.56,15.1212]
[1720790201469,16.207,137.69,137.56,15.1212]
[1720790201704,7.2641,137.67,137.56,37.0312]
[1720790201992,16.207,137.69,137.56,15.1212]
[1720790202194,7.2636,137.68,137.56,37.0312]
[1720790202385,23.47,137.69,137.57,66.91]
[1720790202687,23.4697,137.69,137.57,66.91]
[1720790202983,23.4697,137.69,137.58,20.0]
[1720790203182,23.4697,137.69,137.59,45.0]
[1720790203183,7.2646,137.66,137.59,45.0]
[1720790203394,7.2646,137.66,137.6,130.7558931]
[1720790203816,7.2632,137.68,137.6,130.7558931]
[1720790204172,16.207,137.69,137.6,130.7558931]
[1720790204482,23.4698,137.69,137.6,130.7558931]
[1720790204684,7.2641,137.67,137.6,130.7558931]
[1720790204887,7.2644,137.66,137.6,110.7558931]
[1720790205193,26.207,137.69,137.6,110.7558931]
[1720790205390,7.2637,137.67,137.6,110.7558931]
[1720790205708,7.2633,137.68,137.6,110.7558931]
[1720790206391,7.2633,137.68,137.61,20.0]
[1720790206991,7.2632,137.68,137.61,20.0]
[1720790207301,16.207,137.69,137.62,45.0]
[1720790207525,0.2,137.69,137.63,20.0]
[1720790208595,0.2,137.69,137.64,45.0]
[1720790208795,7.2638,137.67,137.63,20.0]
[1720790209196,7.2633,137.68,137.63,20.0]
[1720790209401,7.2633,137.68,137.61,20.0]
[1720790209596,7.2638,137.67,137.61,20.0]
[1720790210403,0.2,137.69,137.61,20.0]
[1720790210927,7.2635,137.68,137.61,20.0]
[1720790211119,7.2638,137.67,137.61,20.0]
[1720790211625,10.2,137.69,137.6,110.7558931]
[1720790211928,55.2,137.69,137.6,110.7558931]
[1720790212226,7.2643,137.66,137.6,110.7558931]
[1720790213029,7.2639,137.67,137.6,110.7558931]
[1720790213401,7.2643,137.66,137.6,110.7558931]
[1720790214229,7.2639,137.67,137.6,110.7558931]
[1720790214927,0.2,137.69,137.61,21.8203]
[1720790215129,0.2,137.69,137.62,45.56311663]
[1720790215442,0.2,137.69,137.63,20.0]
[1720790215638,0.2,137.69,137.64,45.0]
[1720790215809,0.2,137.69,137.65,20.0]
[1720790216312,0.2,137.69,137.66,45.0]
[1720790216635,0.2,137.69,137.67,20.0]
[1720790217010,0.2,137.69,137.68,60.3053]
[1720790217210,0.2,137.69,137.68,15.3053]
[1720790217922,0.2,137.69,137.67,20.0]
[1720790218126,0.2,137.69,137.65,20.0]
[1720790218313,0.2,137.69,137.66,45.0]
[1720790218508,0.2,137.69,137.67,65.0]
[1720790218909,0.2,137.69,137.67,20.0]
[1720790219120,0.2,137.69,137.65,20.0]
[1720790219532,0.2,137.69,137.66,45.0]
[1720790219753,0.2,137.69,137.67,20.0]
[1720790221816,0.2,137.69,137.68,45.0]
[1720790222017,0.2,137.69,137.68,65.0]
[1720790224335,0.8476585,137.74,137.68,93.0654]
[1720790224528,0.8476585,137.74,137.69,35.338]
[1720790224717,0.8476585,137.74,137.7,45.0]
[1720790224922,0.8476585,137.74,137.71,20.0]
[1720790225523,0.8476585,137.74,137.7,20.0]
[1720790225737,0.8476585,137.74,137.71,45.0]
[1720790227232,0.8476585,137.74,137.7,20.0]
[1720790227438,0.8476585,137.74,137.64,6.0161]
[1720790227753,8.1079585,137.74,137.65,16.0867]
[1720790228254,0.8476585,137.74,137.65,16.0867]
[1720790228956,8.1081585,137.74,137.65,16.0867]
[1720790230026,0.8476585,137.74,137.65,16.0867]
[1720790230254,0.8476585,137.74,137.66,20.0]
[1720790230864,8.1078585,137.74,137.66,20.0]
[1720790231058,0.8476585,137.74,137.66,20.0]
[1720790232061,8.1076585,137.74,137.66,20.0]
[1720790232229,0.8476585,137.74,137.66,20.0]
[1720790233459,0.8476585,137.74,137.62,20.0]
[1720790233684,0.8476585,137.74,137.62,41.91]
[1720790234226,0.8476585,137.74,137.62,20.0]
[1720790234659,8.1078585,137.74,137.62,20.0]
[1720790234861,0.8476585,137.74,137.62,20.0]
[1720790235057,7.2609,137.73,137.62,20.0]
[1720790235263,7.2607,137.73,137.62,20.0]
[1720790235435,8.1078585,137.74,137.62,20.0]
[1720790235637,8.1081585,137.74,137.62,20.0]
[1720790235852,29.7092,137.73,137.62,20.0]
[1720790236027,10.0,137.69,137.59,6.81436772]
[1720790236238,10.0,137.69,137.57,15.7029]
[1720790236239,23.54,137.67,137.57,15.7029]
[1720790236431,16.2761,137.67,137.57,15.7029]
[1720790237040,16.2761,137.67,137.53,18.52890314]
[1720790237358,26.2761,137.67,137.53,15.6223]
[1720790237657,7.2652,137.65,137.53,15.6223]
[1720790237825,7.2644,137.66,137.53,23.18583187]
[1720790238253,26.2761,137.67,137.53,23.18583187]
[1720790238254,7.2648,137.65,137.53,23.18583187]
[1720790238556,26.2761,137.67,137.53,23.18583187]
[1720790238758,7.2654,137.64,137.53,23.18583187]
[1720790238934,10.0,137.62,137.53,7.56353187]
[1720790239134,10.0,137.6,137.49,15.3619]
[1720790239565,45.0,137.59,137.49,15.3619]
[1720790240069,7.2686,137.58,137.45,37.1446]
[1720790240447,7.2686,137.58,137.45,44.70875109]
[1720790242155,10.0,137.58,137.45,22.79875109]
[1720790242333,7.2705,137.55,137.45,22.79875109]
[1720790242544,7.2705,137.55,137.45,15.2346]
[1720790242751,6.1067,137.57,137.45,15.2346]
[1720790243198,6.1067,137.57,137.46,21.91]
[1720790243355,6.1067,137.61,137.46,21.91]
[1720790243690,6.1067,137.61,137.46,60.1]
[1720790243853,13.3736,137.61,137.48,21.91]
[1720790244056,6.1067,137.61,137.49,65.0]
[1720790244580,10.0,137.6,137.49,65.0]
[1720790244786,6.1067,137.61,137.49,65.0]
[1720790245080,6.1067,137.61,137.49,86.91]
[1720790245585,13.3736,137.61,137.49,86.91]
[1720790245884,7.2678,137.6,137.49,20.0]
[1720790246060,10.0,137.6,137.46,20.0]
[1720790246262,7.2691,137.57,137.47,0.84324917]
[1720790246668,10.0,137.58,137.45,15.2346]
[1720790246865,10.0,137.6,137.45,15.2346]
[1720790247178,6.1067,137.61,137.45,15.2346]
[1720790247179,7.2693,137.57,137.45,15.2346]
[1720790247374,7.2695,137.56,137.45,15.2346]
[1720790247558,7.2707,137.54,137.45,15.2346]
[1720790247949,31.91,137.58,137.45,15.2346]
[1720790248154,45.0,137.57,137.45,15.2346]
[1720790248687,7.2698,137.56,137.45,15.2346]
[1720790248860,45.0,137.57,137.45,15.2346]
[1720790249194,7.2704,137.55,137.45,15.2346]
[1720790249783,7.2704,137.55,137.46,20.0]
[1720790249984,17.2697,137.56,137.46,20.0]
[1720790250284,7.2697,137.56,137.46,20.0]
[1720790250581,10.0,137.6,137.46,20.0]
[1720790250790,10.0,137.58,137.47,45.0]
[1720790251092,7.2694,137.57,137.48,20.0]
[1720790251264,31.91,137.6,137.48,20.0]
[1720790251265,7.2696,137.56,137.48,20.0]
[1720790251594,7.2707,137.54,137.48,20.0]
[1720790251760,7.2702,137.55,137.48,20.0]
[1720790251957,7.2696,137.56,137.48,20.0]
[1720790252288,10.0,137.6,137.48,20.0]
[1720790252481,7.2686,137.58,137.49,45.0]
[1720790252666,45.0,137.59,137.5,20.0]
[1720790252667,52.268,137.59,137.5,20.0]
[1720790253289,7.2686,137.58,137.51,1.45360282]
[1720790253652,7.2686,137.58,137.52,1.45349711]
[1720790254485,7.2686,137.58,137.5,20.0]
[1720790254688,7.269,137.57,137.5,20.0]
[1720790254981,7.2687,137.58,137.5,20.0]
[1720790255164,7.268,137.59,137.5,20.0]
[1720790255483,7.2691,137.57,137.51,1.45403809]
[1720790255977,7.2691,137.57,137.5,20.90646453]
[1720790256182,7.2686,137.58,137.51,0.90639861]
[1720790256364,7.269,137.57,137.47,0.90639887]
[1720790256567,7.269,137.57,137.46,65.0]
[1720790256764,7.269,137.57,137.47,45.0]
[1720790256965,7.2686,137.58,137.48,20.0]
[1720790257159,7.2686,137.58,137.49,45.0]
[1720790257468,10.0,137.58,137.5,20.0]
[1720790257678,45.0,137.57,137.5,20.0]
[1720790257964,7.2699,137.56,137.46,20.0]
[1720790258275,7.2697,137.56,137.47,45.0]
[1720790258589,7.2697,137.56,137.46,45.0]
[1720790258815,7.2701,137.55,137.45,15.2346]
[1720790259779,7.2697,137.56,137.45,15.2346]
[1720790260384,7.2697,137.56,137.46,65.0]
[1720790261075,10.0,137.58,137.46,65.0]
[1720790261391,7.2696,137.56,137.46,65.0]
[1720790261970,7.269,137.57,137.46,65.0]
[1720790262404,10.0,137.58,137.46,65.0]
[1720790262604,7.2693,137.57,137.46,65.0]
[1720790262898,13.66729221,137.61,137.48,21.91]
[1720790263081,6.1067,137.61,137.51,15.319]
[1720790263269,6.5163,137.64,137.53,21.91]
[1720790263605,6.5163,137.64,137.54,65.0]
[1720790264469,6.5225,137.67,137.55,6.1597]
[1720790264702,6.5225,137.67,137.57,33.86]
[1720790264906,6.5225,137.67,137.58,20.93358083]
[1720790265226,6.5225,137.67,137.59,60.0122]
[1720790265405,22.0706,137.71,137.6,20.93344513]
[1720790265711,13.7842,137.71,137.61,45.93337729]
[1720790265908,6.5225,137.71,137.62,20.0]
[1720790266077,7.2622,137.7,137.62,20.0]
[1720790266475,13.7842,137.71,137.61,20.0]
[1720790266689,13.7842,137.71,137.62,45.0]
[1720790266876,7.2624,137.7,137.62,45.0]
[1720790267276,13.7842,137.71,137.62,45.0]
[1720790267910,6.5225,137.71,137.62,45.0]
[1720790268112,6.5225,137.71,137.61,20.0]
[1720790268331,6.5225,137.71,137.6,20.0]
[1720790268617,7.2636,137.68,137.62,1.38467881]
[1720790268795,55.0,137.7,137.6,20.0]
[1720790268993,55.0,137.7,137.59,15.0122]
[1720790269524,7.2647,137.66,137.55,6.1597]
[1720790270007,55.0,137.7,137.55,28.0697]
[1720790270204,7.2637,137.68,137.56,20.0]
[1720790270402,10.0,137.68,137.56,20.0]
[1720790270717,7.2638,137.67,137.56,20.0]
[1720790270888,7.2638,137.67,137.57,45.0]
[1720790271092,7.2653,137.65,137.55,6.1597]
[1720790271315,7.2653,137.64,137.55,6.1597]
[1720790271893,7.266,137.63,137.54,16.6654]
[1720790272212,3.8283503,137.74,137.6,28.3456]
[1720790272384,10.0,137.73,137.6,6.4356]
[1720790273215,31.91,137.73,137.6,6.4356]
[1720790273416,7.2617,137.71,137.61,65.0]
[1720790274218,10.0,137.69,137.61,20.0]
[1720790274721,0.8476585,137.74,137.63,21.91]
[1720790275027,0.8476585,137.74,137.64,20.0]
[1720790275716,0.8476585,137.74,137.65,45.0]
[1720790275915,0.8476585,137.74,137.66,20.0]
[1720790276295,0.8476585,137.74,137.67,45.0]
[1720790276490,31.91,137.73,137.6,15.0391]
[1720790276912,0.8476585,137.74,137.62,16.2002]
[1720790277087,0.8476585,137.74,137.63,1.45202681]
[1720790277288,0.8476585,137.74,137.62,16.2002]
[1720790277518,0.8476585,137.74,137.62,38.1102]
[1720790277697,0.8476585,137.74,137.62,16.2002]
[1720790278110,0.8476585,137.74,137.63,65.0]
[1720790279112,0.8476585,137.74,137.64,6.2653]
[1720790279416,10.0,137.81,137.65,102.6884]
[1720790279619,10.0,137.81,137.66,29.65324125]
[1720790279805,10.0,137.79,137.67,46.45045236]
[1720790279996,10.0,137.79,137.68,21.45203124]
[1720790280198,10.0,137.79,137.69,45.0]
[1720790280426,10.0,137.79,137.7,20.0]
[1720790281018,7.543348,137.87,137.68,59.7651]
[1720790281229,0.8476585,137.88,137.72,21.91]
[1720790281528,10.0,137.86,137.73,73.20763013]
[1720790281697,0.8476585,137.88,137.73,95.11763013]
[1720790282017,10.0,137.87,137.73,95.11763013]
[1720790282214,0.8476585,137.88,137.73,73.20763013]
[1720790282417,0.8476585,137.88,137.73,95.11763013]
[1720790283117,0.8476585,137.88,137.79,36.9133]
[1720790283302,0.8476585,137.88,137.8,66.45037159]
[1720790283720,0.8476585,137.88,137.8,21.45037159]
[1720790284108,10.8476585,137.88,137.8,20.0]
[1720790284417,10.8476585,137.88,137.76,6.4309]
[1720790284716,10.8476585,137.88,137.77,65.0]
[1720790284894,18.1006585,137.88,137.77,65.0]
[1720790285094,17.2539,137.86,137.77,65.0]
[1720790285294,0.8476585,137.88,137.77,35.148]
[1720790285514,7.2547,137.85,137.78,8.26901902]
[1720790285710,10.0,137.86,137.73,8.26901902]
[1720790285896,0.8476585,137.88,137.73,8.26901902]
[1720790285897,10.0,137.84,137.73,8.26901902]
[1720790286499,10.0,137.86,137.73,8.26901902]
[1720790286709,10.0,137.84,137.73,8.26901902]
[1720790287219,0.8476585,137.88,137.74,16.2339]
[1720790287395,0.8476585,137.88,137.75,8.26901902]
[1720790287727,7.2541,137.86,137.75,8.26901902]
[1720790287898,17.2533,137.87,137.75,8.26901902]
[1720790288098,10.0,137.87,137.75,8.26901902]
[1720790288402,10.0,137.87,137.76,21.4512897]
[1720790288601,17.2536,137.87,137.77,1.45118435]
[1720790288806,10.0,137.87,137.77,1.45118435]
[1720790289219,8.1003585,137.88,137.77,1.45118435]
[1720790289220,0.8476585,137.88,137.77,1.45118435]
[1720790289406,0.8476585,137.88,137.76,20.0]
[1720790289608,0.8476585,137.88,137.77,45.0]
[1720790289916,0.8476585,137.88,137.78,20.0]
[1720790290106,0.8476585,137.88,137.77,45.0]
[1720790290305,0.8476585,137.88,137.78,20.0]
[1720790290613,0.8476585,137.88,137.79,45.44376715]
[1720790290827,0.8476585,137.88,137.8,20.44373494]
[1720790293001,0.8476585,137.88,137.81,66.91]
[1720790293205,0.8476585,137.88,137.82,20.0]
[1720790293504,0.8476585,137.88,137.83,45.0]
[1720790293839,0.8476585,137.88,137.84,20.0]
[1720790294203,0.8476585,137.88,137.82,41.91]
[1720790294409,0.8476585,137.88,137.83,45.0]
[1720790294621,0.8476585,137.88,137.84,20.0]
[1720790295122,0.8476585,137.88,137.82,20.0]
[1720790295313,0.8476585,137.88,137.83,45.0]
[1720790295514,0.8476585,137.88,137.84,20.0]
[1720790297128,0.8476585,137.88,137.85,0.97744027]
[1720790297427,0.8476585,137.88,137.86,0.97817557]
[1720790297655,0.8476585,137.88,137.87,0.97810462]
[1720790297832,0.8476585,137.88,137.84,20.0]
[1720790298440,0.8476585,137.88,137.82,20.0]
[1720790298723,0.8476585,137.88,137.83,45.0]
[1720790299057,0.8476585,137.88,137.84,20.0]
[1720790299340,0.8476585,137.88,137.81,8.26901902]
[1720790299643,0.8476585,137.88,137.82,0.47324669]
[1720790299842,0.8476585,137.88,137.83,0.47321235]
[1720790301925,0.8476585,137.88,137.82,20.48290405]
[1720790302225,0.8476585,137.88,137.83,0.48289209]
[1720790302426,0.8476585,137.88,137.78,0.48289209]
[1720790302621,0.8476585,137.88,137.77,38.31214902]
[1720790302622,0.8476585,137.88,137.77,8.26901902]
[1720790303040,0.8476585,137.88,137.78,1.10995105]
[1720790303231,0.8476585,137.88,137.79,8.26901902]
[1720790303443,0.8476585,137.88,137.8,1.10978995]
[1720790304025,0.8476585,137.88,137.79,8.26901902]
[1720790304229,7.2534,137.87,137.79,8.26901902]
[1720790304427,7.2534,137.87,137.76,7.2518]
[1720790304647,0.8476585,137.88,137.76,7.2518]
[1720790304853,0.8476585,137.88,137.76,15.52081902]
[1720790305229,0.8476585,137.88,137.76,8.26901902]
[1720790305858,10.8476585,137.88,137.77,20.0]
[1720790306535,0.8476585,137.88,137.78,1.45049577]
[1720790306937,13.7889,137.86,137.78,1.45049577]
[1720790307237,0.8476585,137.88,137.78,1.45049577]
[1720790307432,0.8476585,137.88,137.79,8.26901902]
[1720790307649,0.8476585,137.88,137.8,1.45028558]
[1720790307854,0.8476585,137.88,137.8,9.7193046]
[1720790308057,0.8476585,137.88,137.8,8.26901902]
[1720790308225,0.8476585,137.88,137.81,21.03013679]
[1720790309037,0.8476585,137.88,137.82,1.45078565]
[1720790309248,0.8476585,137.88,137.83,1.45068039]
[1720790309967,0.8476585,137.88,137.83,21.45068039]
[1720790310169,0.8476585,137.88,137.84,66.91]
[1720790310458,0.8476585,137.88,137.85,20.0]
[1720790310661,0.8476585,137.88,137.86,46.44800426]
[1720790310830,0.8476585,137.88,137.87,20.0]
[1720790311181,0.8476585,137.88,137.87,65.0]
[1720790312536,0.8476585,137.88,137.87,95.17901902]
[1720790312743,0.2,137.89,137.87,96.62582966]
[1720790312948,0.2,137.89,137.88,75.17901902]
[1720790313340,0.2,137.99,137.88,95.17901902]
[1720790313685,0.2,137.99,137.89,41.91]
[1720790313956,0.2,137.99,137.91,21.91]
[1720790314160,0.2,137.99,137.92,41.91]
[1720790314472,0.2,137.99,137.93,83.0742]
[1720790314674,0.2,137.99,137.94,20.0]
[1720790314853,0.2,137.99,137.95,45.0]
[1720790315039,0.2,137.99,137.96,20.0]
[1720790315268,0.2,137.99,137.97,45.0]
[1720790315570,0.2,137.99,137.98,20.0]
[1720790315770,0.2,137.99,137.98,65.0]
[1720790317345,0.2,137.99,137.98,20.0]
[1720790317538,0.2,137.99,137.94,21.44793675]
[1720790318158,0.2,137.99,137.94,1.44793675]
[1720790319081,0.2,137.99,137.92,8.26901902]
[1720790319367,0.2,137.99,137.93,1.44653584]
[1720790320341,0.2,137.99,137.9,1.44783299]
[1720790320744,0.2,137.99,137.89,8.26901902]
[1720790320958,6.379,137.99,137.89,8.26901902]
[1720790322291,0.2,137.99,137.9,21.91]
[1720790322571,0.2,137.99,137.91,65.0]
[1720790324780,0.2,137.99,137.91,67.906456]
[1720790325660,0.2,137.99,137.92,21.91]
[1720790325972,0.2,137.99,137.91,67.906456]
[1720790325973,0.2,137.99,137.93,133.25901902]
[1720790326273,2.90348932,138.03,137.93,133.25901902]
[1720790326456,2.90348932,138.03,137.95,21.91]
[1720790326777,2.90348932,138.03,137.97,21.91]
[1720790327085,2.90348932,138.03,137.98,66.44488584]
[1720790327253,2.90348932,138.03,137.99,1.44478113]
[1720790329994,2.90348932,138.03,138.0,21.91]
[1720790330202,2.90348932,138.03,138.01,88.35824516]
[1720790330476,2.90348932,138.03,138.02,1.44814022]
[1720790331084,2.90348932,138.06,138.02,1.44814022]
[1720790331756,2.90348932,138.06,138.01,20.0]
[1720790332078,2.90348932,138.06,137.97,8.26901902]
[1720790332781,2.90348932,138.06,137.97,30.17901902]